bitfinex-derivatives/quotes_ETHF0:USTF0_20260119
["timestamp","ask_amount","ask_price","bid_price","bid_amount"]
[1768859154500,0.87243586,3217.4,3216.5,289.58164509]
[1768859154700,0.87243586,3217.3,3216.5,289.58164509]
[1768859155000,0.87243586,3217.2,3216.5,289.58164509]
[1768859155198,0.87243586,3217.1,3216.5,289.58164509]
[1768859155399,1.28957918,3217.5,3216.5,289.58164509]
[1768859155607,0.87248778,3217.4,3216.5,289.58164509]
[1768859155797,0.87248778,3217.3,3216.5,289.58164509]
[1768859155998,0.87248778,3217.2,3216.5,289.58164509]
[1768859156194,0.87248778,3217.1,3216.5,289.58164509]
[1768859156404,1.28957918,3217.5,3216.5,289.58164509]
[1768859156604,0.87253855,3217.4,3216.5,289.58164509]
[1768859156805,0.87253855,3217.3,3216.5,289.58164509]
[1768859157110,0.87253855,3217.2,3216.5,289.58164509]
[1768859157309,0.87253855,3217.1,3216.5,289.58164509]
[1768859157512,1.28957918,3217.5,3216.5,289.58164509]
[1768859157711,0.87260394,3217.4,3216.5,289.58164509]
[1768859157906,0.87260394,3217.3,3216.5,289.58164509]
[1768859158212,0.87260394,3217.2,3216.5,289.58164509]
[1768859158513,0.87260394,3217.1,3216.5,289.58164509]
[1768859158700,1.28957918,3217.5,3216.5,289.58164509]
[1768859158905,0.87148774,3217.4,3216.5,289.58164509]
[1768859159204,0.87148774,3217.3,3216.5,289.58164509]
[1768859159403,0.87148774,3217.2,3216.5,289.58164509]
[1768859159605,0.87148774,3217.1,3216.5,289.58164509]
[1768859159806,0.87148774,3217.0,3216.5,289.58164509]
[1768859160108,1.11844206,3217.4,3216.5,289.58164509]
[1768859160307,0.87167305,3217.3,3216.5,289.58164509]
[1768859160509,0.87167305,3217.2,3216.5,289.58164509]
[1768859160698,0.87167305,3217.1,3216.5,289.58164509]
[1768859160904,0.87167305,3217.0,3216.5,289.58164509]
[1768859161104,1.11844206,3217.4,3216.5,289.58164509]
[1768859161304,0.87166753,3217.3,3216.5,289.58164509]
[1768859161501,1.11844206,3217.4,3216.5,289.58164509]
[1768859161502,0.87166753,3217.2,3216.5,289.58164509]
[1768859161811,0.87166753,3217.1,3216.5,289.58164509]
[1768859162000,0.87166753,3217.0,3216.5,289.58164509]
[1768859162203,1.11844206,3217.4,3216.5,292.51500776]
[1768859162606,1.11844206,3217.5,3216.5,292.51500776]
[1768859163613,1.11844206,3217.6,3216.6,1.28957918]
[1768859173321,1.11844206,3217.6,3216.5,285.80458694]
[1768859173520,1.11844206,3217.6,3216.5,287.09416612]
[1768859174420,1.98602458,3217.6,3216.5,287.09416612]
[1768859174618,1.98602458,3217.6,3216.7,1.28957918]
[1768859174820,0.86758252,3217.5,3216.7,1.28957918]
[1768859175025,0.86758252,3217.4,3216.7,1.28957918]
[1768859175326,0.86758252,3217.3,3216.7,1.28957918]
[1768859175518,2.94544206,3217.7,3216.7,1.28957918]
[1768859175718,0.86759778,3217.6,3216.8,4.802]
[1768859176021,0.86759778,3217.5,3216.8,4.802]
[1768859176224,0.86759778,3217.4,3216.8,4.802]
[1768859176426,1.827,3217.7,3216.8,4.802]
[1768859176617,0.86750387,3217.6,3216.8,4.802]
[1768859176820,0.86750387,3217.5,3216.8,4.802]
[1768859177128,0.86750387,3217.4,3216.8,4.802]
[1768859177312,1.827,3217.7,3216.8,4.802]
[1768859177515,0.86743157,3217.6,3216.8,4.802]
[1768859177719,0.86743157,3217.5,3216.8,4.802]
[1768859177913,0.86743157,3217.4,3216.8,4.802]
[1768859178117,1.827,3217.7,3216.8,4.802]
[1768859178318,0.86742371,3217.6,3216.8,4.802]
[1768859178519,0.86742371,3217.5,3216.8,4.802]
[1768859178719,0.86742371,3217.4,3216.8,4.802]
[1768859178922,1.827,3217.7,3216.8,4.802]
[1768859179130,0.86736388,3217.6,3216.8,4.802]
[1768859179332,0.86736388,3217.5,3216.8,4.802]
[1768859179531,0.86736388,3217.4,3216.8,4.802]
[1768859179731,1.827,3217.7,3216.8,4.802]
[1768859179932,0.86731452,3217.6,3216.8,4.802]
[1768859180133,0.86731452,3217.5,3216.8,4.802]
[1768859180333,0.86731452,3217.4,3216.8,4.802]
[1768859180535,1.827,3217.7,3216.8,4.802]
[1768859180731,0.86728454,3217.6,3216.8,4.802]
[1768859180933,0.86728454,3217.5,3216.8,4.802]
[1768859181127,0.86728454,3217.4,3216.8,4.802]
[1768859181323,1.827,3217.7,3216.8,4.802]
[1768859181626,0.86725582,3217.6,3216.8,4.802]
[1768859181827,0.86725582,3217.5,3216.8,4.802]
[1768859182035,0.86725582,3217.4,3216.8,4.802]
[1768859182334,1.827,3217.7,3216.8,4.802]
[1768859182537,0.86725896,3217.6,3216.8,4.802]
[1768859182742,0.86725896,3217.5,3216.8,4.802]
[1768859182940,0.86725896,3217.4,3216.8,4.802]
[1768859183128,1.827,3217.7,3216.8,4.802]
[1768859183332,0.86725861,3217.6,3216.8,4.802]
[1768859183635,0.86725861,3217.5,3216.8,4.802]
[1768859183838,0.86725861,3217.4,3216.8,4.802]
[1768859184032,1.827,3217.7,3216.8,4.802]
[1768859184233,0.8672458,3217.6,3216.8,4.802]
[1768859184439,0.8672458,3217.5,3216.8,4.802]
[1768859184633,0.8672458,3217.4,3216.8,4.802]
[1768859184837,1.827,3217.7,3216.8,4.802]
[1768859185036,0.86722899,3217.6,3216.8,4.802]
[1768859185340,0.86722899,3217.5,3216.8,4.802]
[1768859185641,0.86722899,3217.4,3216.8,4.802]
[1768859185841,1.827,3217.7,3216.8,4.802]
[1768859186041,0.86722651,3217.6,3216.8,4.802]
[1768859186242,0.86722651,3217.5,3216.8,4.802]
[1768859186441,1.827,3217.7,3216.8,4.802]
[1768859186642,0.8672321,3217.6,3216.8,4.802]
[1768859186838,0.8672321,3217.5,3216.8,4.802]
[1768859187045,1.827,3217.7,3216.8,4.802]
[1768859187235,0.8672483,3217.6,3216.8,4.802]
[1768859187437,0.8672483,3217.5,3216.8,4.802]
[1768859187645,1.827,3217.7,3216.8,4.802]
[1768859187845,0.86724682,3217.6,3216.8,4.802]
[1768859188045,0.86724682,3217.5,3216.8,4.802]
[1768859188246,1.827,3217.7,3216.8,4.802]
[1768859188444,0.86721788,3217.6,3216.8,4.802]
[1768859188644,0.86721788,3217.5,3216.8,4.802]
[1768859188941,1.827,3217.7,3216.8,4.802]
[1768859189128,0.86641308,3217.6,3216.8,4.802]
[1768859189332,0.86641308,3217.5,3216.8,4.802]
[1768859189535,1.827,3217.7,3216.8,4.802]
[1768859189740,0.86644289,3217.6,3216.8,4.802]
[1768859189945,0.86644289,3217.5,3216.8,4.802]
[1768859190246,1.827,3217.7,3216.8,4.802]
[1768859190447,0.86643827,3217.6,3216.8,4.802]
[1768859190645,1.827,3217.7,3216.8,4.802]
[1768859190646,0.86643827,3217.5,3216.8,4.802]
[1768859190847,1.827,3217.7,3216.8,4.802]
[1768859191049,0.86645491,3217.6,3216.8,4.802]
[1768859191243,0.86645491,3217.5,3216.8,4.802]
[1768859191449,1.827,3217.7,3216.8,4.802]
[1768859191644,0.86649495,3217.6,3216.8,4.802]
[1768859191942,0.86649495,3217.5,3216.8,4.802]
[1768859192247,0.86657566,3217.4,3216.8,4.802]
[1768859192547,1.827,3217.7,3216.8,4.802]
[1768859192749,0.8665696,3217.6,3216.8,4.802]
[1768859192949,0.8665696,3217.5,3216.8,4.802]
[1768859193140,0.8665696,3217.4,3216.8,4.802]
[1768859193342,1.827,3217.7,3216.8,4.802]
[1768859193636,0.86663238,3217.6,3216.8,4.802]
[1768859193839,0.86663238,3217.5,3216.8,4.802]
[1768859194135,0.86663238,3217.4,3216.8,4.802]
[1768859194339,1.827,3217.7,3216.8,4.802]
[1768859194539,0.86664299,3217.6,3216.8,4.802]
[1768859194751,0.86664299,3217.5,3216.8,4.802]
[1768859194952,0.86664299,3217.4,3216.8,4.802]
[1768859195151,1.827,3217.7,3216.8,4.802]
[1768859195350,0.86676162,3217.6,3216.8,4.802]
[1768859195552,0.86676162,3217.5,3216.8,4.802]
[1768859195751,0.86676162,3217.4,3216.8,4.802]
[1768859195952,1.827,3217.7,3216.8,4.802]
[1768859196154,0.86677624,3217.6,3216.8,4.802]
[1768859196452,0.86677624,3217.5,3216.8,4.802]
[1768859196654,0.86677624,3217.4,3216.8,4.802]
[1768859196954,1.827,3217.7,3216.8,4.802]
[1768859197154,0.86678743,3217.6,3216.8,4.802]
[1768859197349,0.86678743,3217.5,3216.8,4.802]
[1768859197548,0.86678743,3217.4,3216.8,4.802]
[1768859197742,1.827,3217.7,3216.8,4.802]
[1768859197946,0.86680882,3217.6,3216.8,4.802]
[1768859198245,0.86680882,3217.5,3216.8,4.802]
[1768859198446,0.86680882,3217.4,3216.8,4.802]
[1768859198646,1.827,3217.7,3216.8,4.802]
[1768859198853,0.86683283,3217.6,3216.8,4.802]
[1768859199055,1.827,3217.7,3216.8,4.802]
[1768859199056,0.86683283,3217.5,3216.8,4.802]
[1768859199254,0.86683283,3217.4,3216.8,4.802]
[1768859199555,1.827,3217.7,3216.8,4.802]
[1768859199757,0.86685956,3217.6,3216.8,4.802]
[1768859199955,0.86685956,3217.5,3216.8,4.802]
[1768859200155,0.86685956,3217.4,3216.8,4.802]
[1768859200354,1.827,3217.7,3216.8,4.802]
[1768859200559,0.86690018,3217.6,3216.8,4.802]
[1768859200854,0.86690018,3217.5,3216.8,4.802]
[1768859201053,0.86690018,3217.4,3216.8,4.802]
[1768859201254,1.827,3217.7,3216.8,4.802]
[1768859201557,0.86696213,3217.6,3216.8,4.802]
[1768859201746,0.86696213,3217.5,3216.8,4.802]
[1768859201947,0.86696213,3217.4,3216.8,4.802]
[1768859202146,1.827,3217.7,3216.8,4.802]
[1768859202347,0.86695358,3217.6,3216.8,4.802]
[1768859202552,0.86695358,3217.5,3216.8,4.802]
[1768859202846,0.86695358,3217.4,3216.8,4.802]
[1768859203047,1.11844206,3217.8,3216.8,4.802]
[1768859203242,0.8670256,3217.7,3216.8,4.802]
[1768859203456,0.8670256,3217.6,3216.8,4.802]
[1768859203643,0.8670256,3217.5,3216.8,4.802]
[1768859203848,0.8670256,3217.4,3216.8,4.802]
[1768859204048,1.11844206,3217.8,3216.8,4.802]
[1768859204248,0.86711067,3217.7,3216.8,4.802]
[1768859204457,0.86711067,3217.6,3216.8,4.802]
[1768859204760,0.86711067,3217.5,3216.8,4.802]
[1768859204960,0.86711067,3217.4,3216.8,4.802]
[1768859205257,1.11844206,3217.8,3216.8,4.802]
[1768859205558,0.86733029,3217.7,3216.8,4.802]
[1768859205858,0.86733029,3217.6,3216.8,4.802]
[1768859206055,0.86733029,3217.5,3216.8,4.802]
[1768859206265,0.86733029,3217.4,3216.8,4.802]
[1768859206555,3.10471163,3217.8,3216.8,4.802]
[1768859206747,0.86733492,3217.7,3216.8,4.802]
[1768859206949,0.86733492,3217.6,3216.8,4.802]
[1768859207148,0.86733492,3217.5,3216.8,4.802]
[1768859207350,0.86733492,3217.4,3216.8,4.802]
[1768859207551,3.10471163,3217.8,3216.8,4.802]
[1768859207756,0.86733662,3217.7,3216.8,4.802]
[1768859207953,0.86733662,3217.6,3216.8,4.802]
[1768859208154,0.86733662,3217.5,3216.8,4.802]
[1768859208359,0.86733662,3217.4,3216.8,4.802]
[1768859208559,3.10471163,3217.8,3216.8,4.802]
[1768859208859,0.86735035,3217.7,3216.8,4.802]
[1768859209059,1.98626957,3217.8,3216.8,4.802]
[1768859209060,0.86735035,3217.6,3216.8,4.802]
[1768859209260,0.86735035,3217.5,3216.8,4.802]
[1768859209461,1.98626957,3217.8,3216.8,4.802]
[1768859209669,0.86726832,3217.7,3216.8,4.802]
[1768859209853,0.86726832,3217.6,3216.8,4.802]
[1768859210054,0.86726832,3217.5,3216.8,4.802]
[1768859210262,1.98626957,3217.8,3216.8,4.802]
[1768859210464,0.86718221,3217.7,3216.8,4.802]
[1768859210763,0.86718221,3217.6,3216.8,4.802]
[1768859210964,1.98626957,3217.8,3216.8,4.802]
[1768859211163,0.86719332,3217.7,3216.8,4.802]
[1768859211354,0.86719332,3217.6,3216.8,4.802]
[1768859211560,1.98626957,3217.8,3216.8,4.802]
[1768859211758,0.86711202,3217.7,3216.8,4.802]
[1768859211961,0.86711202,3217.6,3216.8,4.802]
[1768859212158,1.98626957,3217.8,3216.8,4.802]
[1768859212366,0.86706677,3217.7,3216.8,4.802]
[1768859212561,0.86706677,3217.6,3216.8,4.802]
[1768859212767,1.98626957,3217.8,3216.8,4.802]
[1768859212964,0.86697483,3217.7,3216.8,4.802]
[1768859213270,0.86697483,3217.6,3216.8,4.802]
[1768859213472,1.98626957,3217.8,3216.8,4.802]
[1768859213672,1.66779745,3217.6,3216.8,4.881]
[1768859223573,1.66779745,3217.4,3216.5,278.16322427]
[1768859224581,0.86590068,3217.3,3216.5,278.16322427]
[1768859224873,1.11844206,3217.6,3216.5,278.16322427]
[1768859224874,1.66779745,3217.1,3216.5,278.16322427]
[1768859231679,1.66779745,3217.6,3216.5,278.16322427]
[1768859231878,2.53309378,3217.5,3216.5,278.16322427]
[1768859232078,0.86529633,3217.4,3216.5,278.16322427]
[1768859232379,2.78623951,3217.9,3216.5,278.16322427]
[1768859232577,2.53310376,3217.8,3216.5,278.16322427]
[1768859232774,0.86530631,3217.7,3216.5,278.16322427]
[1768859233783,2.53310376,3217.7,3216.5,278.16322427]
[1768859233975,0.86530631,3217.6,3216.5,278.16322427]
[1768859238085,2.53310376,3217.6,3216.5,278.16322427]
[1768859238286,1.66779745,3217.6,3216.5,278.16322427]
[1768859242492,1.66779745,3217.6,3216.6,4.941]
[1768859252889,1.66779745,3217.6,3216.6,6.23045432]
[1768859258298,0.86709767,3217.5,3216.6,6.23045432]
[1768859258499,1.66779745,3217.6,3216.6,6.23045432]
[1768859258701,0.86709109,3217.5,3216.6,6.23045432]
[1768859258998,1.66779745,3217.6,3216.6,6.23045432]
[1768859259200,0.86708327,3217.5,3216.6,6.23045432]
[1768859259400,1.66779745,3217.6,3216.6,6.23045432]
[1768859259601,0.86719622,3217.5,3216.6,6.23045432]
[1768859259800,1.66779745,3217.6,3216.6,6.23045432]
[1768859260103,0.86719536,3217.5,3216.6,6.23045432]
[1768859260293,1.66779745,3217.6,3216.6,6.23045432]
[1768859260493,0.86734114,3217.5,3216.6,6.23045432]
[1768859260693,1.66779745,3217.6,3216.6,6.23045432]
[1768859260894,0.86733925,3217.5,3216.6,6.23045432]
[1768859261094,1.66779745,3217.6,3216.6,6.23045432]
[1768859261305,0.86756194,3217.5,3216.6,6.23045432]
[1768859261504,1.66779745,3217.6,3216.6,6.38599432]
[1768859261813,0.86756218,3217.5,3216.9,1.28945432]
[1768859262008,1.66779745,3217.6,3217.0,4.98]
[1768859286333,0.71693775,3218.1,3217.5,1.28945432]
[1768859286534,0.86766483,3218.0,3217.5,1.28945432]
[1768859286740,0.00240431,3218.4,3217.3,1.28945432]
[1768859287035,1.12084637,3218.4,3217.3,1.28945432]
[1768859287241,0.86766488,3218.3,3217.3,1.28945432]
[1768859287550,0.86766488,3218.2,3217.3,1.28945432]
[1768859287838,0.86766488,3218.1,3217.3,1.28945432]
[1768859288040,0.86766488,3218.0,3217.3,1.28945432]
[1768859288337,0.86722177,3218.3,3217.3,1.28945432]
[1768859288530,0.86722177,3218.1,3217.3,1.28945432]
[1768859288732,0.86746263,3218.0,3217.3,1.28945432]
[1768859288932,0.86722177,3218.1,3217.3,1.28945432]
[1768859289335,0.86739927,3218.0,3217.3,1.28945432]
[1768859289533,0.86722177,3218.1,3217.3,1.28945432]
[1768859289733,0.86739874,3218.0,3217.3,1.28945432]
[1768859289941,0.86722177,3218.1,3217.3,1.28945432]
[1768859296347,0.86722177,3218.1,3217.1,1.44497432]
[1768859298749,0.86722177,3218.1,3217.2,5.054]
[1768859300849,0.86722177,3217.8,3217.0,278.16322427]
[1768859307053,0.86722177,3217.8,3217.0,283.23322427]
[1768859309453,0.70571466,3217.7,3217.0,283.23322427]
[1768859323970,0.58077802,3217.5,3217.0,278.16322427]
[1768859341893,0.5140587,3217.3,3217.0,264.672366]
[1768859342790,0.5140587,3217.3,3217.0,251.36419391]
[1768859342994,0.5140587,3217.1,3217.0,250.869746]
[1768859343198,0.5140587,3217.1,3217.0,240.58582842]
[1768859343695,0.5140587,3217.1,3217.0,240.29559635]
[1768859343883,0.5140587,3217.1,3217.0,227.68588143]
[1768859344084,0.5140587,3217.1,3217.0,227.45339217]
[1768859344286,0.5140587,3217.1,3217.0,227.22083348]
[1768859344488,0.5140587,3217.1,3217.0,226.98822193]
[1768859344690,0.5140587,3217.1,3217.0,226.7554833]
[1768859344891,0.5140587,3217.1,3217.0,226.52265353]
[1768859345099,0.5140587,3217.1,3217.0,226.28976617]
[1768859345291,0.5140587,3217.1,3217.0,226.05679439]
[1768859345491,0.5140587,3217.1,3217.0,225.82373094]
[1768859345692,0.5140587,3217.1,3217.0,225.70721822]
[1768859345888,1.11844206,3217.7,3217.0,225.70721822]
[1768859346187,1.98540626,3217.6,3217.0,225.70721822]
[1768859346387,0.8669642,3217.5,3217.0,225.70721822]
[1768859346587,0.8669642,3217.4,3217.0,225.70721822]
[1768859346791,0.8669642,3217.3,3217.0,225.70721822]
[1768859346988,1.11844206,3217.7,3217.0,225.70721822]
[1768859347189,0.86695243,3217.6,3217.0,225.70721822]
[1768859347386,0.86695243,3217.5,3217.0,225.70721822]
[1768859347588,0.86695243,3217.4,3217.0,225.70721822]
[1768859347784,0.86695243,3217.3,3217.0,225.70721822]
[1768859347998,0.5140587,3217.1,3217.0,225.70721822]
[1768859348592,0.5140587,3217.5,3217.0,225.70721822]
[1768859348791,0.5140587,3217.3,3217.0,225.70721822]
[1768859351203,0.5140587,3217.1,3217.0,225.70721822]
[1768859351400,1.38115515,3217.1,3217.0,225.70721822]
[1768859354600,1.38115515,3217.1,3217.0,223.49127474]
[1768859354805,1.38115515,3217.1,3217.0,220.9303]
[1768859354996,0.86709645,3217.1,3217.0,219.22228874]
[1768859355198,0.86709645,3217.1,3217.0,218.87544874]
[1768859355403,0.86709645,3217.1,3217.0,218.13269874]
[1768859355600,0.86709645,3217.1,3217.0,202.86155436]
[1768859355807,0.86709645,3217.1,3217.0,201.65773686]
[1768859356007,0.86709645,3217.1,3217.0,201.25847686]
[1768859356305,0.86709645,3217.1,3217.0,200.43371686]
[1768859356501,0.86709645,3217.1,3217.0,200.01859686]
[1768859356806,0.86709645,3217.1,3217.0,187.16827941]
[1768859357005,0.86709645,3217.1,3217.0,186.63830449]
[1768859357399,0.86709645,3217.1,3217.0,186.22534449]
[1768859357600,0.86709645,3217.1,3217.0,185.68138861]
[1768859358306,0.86709645,3217.1,3217.0,184.74483819]
[1768859358700,0.86709645,3217.1,3217.0,184.33443819]
[1768859359006,0.86709645,3217.1,3217.0,183.78769193]
[1768859359203,0.86709645,3217.1,3217.0,183.13242959]
[1768859359409,6.86709645,3217.1,3217.0,169.47827547]
[1768859359605,7.98553851,3217.1,3217.0,168.71483891]
[1768859359807,7.98553851,3217.1,3217.0,167.42761704]
[1768859360006,7.98553851,3217.1,3217.0,166.66164469]
[1768859360307,6.86709645,3217.1,3217.0,165.76834651]
[1768859360511,6.86709645,3217.1,3217.0,164.4464812]
[1768859360807,6.86709645,3217.1,3217.0,162.4667841]
[1768859361003,6.86709645,3217.1,3217.0,161.6805585]
[1768859361205,6.86709645,3217.1,3217.0,160.91295634]
[1768859361508,6.86709645,3217.1,3217.0,158.98178354]
[1768859361809,6.86709645,3217.1,3217.0,158.09317227]
[1768859362008,6.86709645,3217.1,3217.0,156.80758378]
[1768859362209,6.86709645,3217.1,3217.0,155.52876998]
[1768859362407,6.86709645,3217.1,3217.0,154.76678127]
[1768859362599,6.86709645,3217.1,3217.0,153.993754]
[1768859362800,6.86709645,3217.1,3217.0,152.71408961]
[1768859363010,6.86709645,3217.1,3217.0,151.94890504]
[1768859363209,6.86709645,3217.1,3217.0,151.1995731]
[1768859363505,6.86709645,3217.1,3217.0,149.8153111]
[1768859363712,6.86709645,3217.1,3217.0,148.54700959]
[1768859363907,6.86709645,3217.1,3217.0,147.79313977]
[1768859364209,6.86709645,3217.1,3217.0,146.43136328]
[1768859364405,0.86709645,3217.1,3217.0,145.68379871]
[1768859364604,0.86709645,3217.1,3217.0,144.56947235]
[1768859364810,0.86709645,3217.1,3217.0,143.88206767]
[1768859365013,0.86709645,3217.1,3217.0,143.1684389]
[1768859365211,0.86709645,3217.1,3217.0,142.45666352]
[1768859365411,0.86709645,3217.1,3217.0,141.7282125]
[1768859365613,0.86709645,3217.1,3217.0,137.94731667]
[1768859365813,0.86709645,3217.1,3217.0,137.24263062]
[1768859365999,0.86709645,3217.1,3217.0,136.07549494]
[1768859366202,0.86709645,3217.1,3217.0,135.36880127]
[1768859366402,0.86709645,3217.1,3217.0,134.18561619]
[1768859366599,0.86709645,3217.1,3217.0,133.4783175]
[1768859366805,0.86709645,3217.1,3217.0,132.91796531]
[1768859367013,0.86709645,3217.1,3217.0,132.02611977]
[1768859368421,0.86709645,3217.1,3217.0,131.71453977]
[1768859368604,0.86709645,3217.1,3217.0,131.04608977]
[1768859369114,0.86709645,3217.1,3217.0,130.62322977]
[1768859369816,0.86709645,3217.1,3217.0,128.54672706]
[1768859370216,0.86709645,3217.1,3217.0,128.15251706]
[1768859370815,0.86709645,3217.1,3217.0,127.72368706]
[1768859371318,0.86709645,3217.1,3217.0,127.28669706]
[1768859371709,0.86709645,3217.1,3217.0,126.81547706]
[1768859372217,0.86709645,3217.1,3217.0,126.32092706]
[1768859372718,0.86709645,3217.1,3217.0,125.76628706]
[1768859373623,0.86709645,3217.1,3217.0,125.23670706]
[1768859374220,0.86709645,3217.1,3217.0,124.68918706]
[1768859374420,0.86709645,3217.1,3217.0,124.14166706]
[1768859374619,2.44857236,3217.1,3217.0,123.55762706]
[1768859374826,1.3301303,3217.1,3217.0,106.73903056]
[1768859375120,1.1746103,3217.1,3217.0,106.73903056]
[1768859375622,1.1746103,3217.1,3217.0,104.21812573]
[1768859380623,1.1746103,3217.1,3217.0,103.90047573]
[1768859381026,1.1746103,3217.1,3217.0,103.58727573]
[1768859381327,1.1746103,3217.1,3217.0,103.25791573]
[1768859381517,1.1746103,3217.1,3217.0,102.84914573]
[1768859382320,1.1746103,3217.1,3217.0,102.45841573]
[1768859382521,1.1746103,3217.1,3217.0,101.92740573]
[1768859382722,2.85203436,3217.1,3217.0,86.77104877]
[1768859383023,2.85203436,3217.1,3217.0,54.58800877]
[1768859383420,2.85203436,3217.1,3217.0,54.04481877]
[1768859383620,3.00755436,3217.1,3217.0,54.04481877]
[1768859383824,3.00755436,3217.1,3217.0,41.1350925]
[1768859384018,3.00755436,3217.1,3217.0,40.5633225]
[1768859384218,3.00755436,3217.1,3217.0,39.9909125]
[1768859384419,3.00755436,3217.1,3217.0,39.4185025]
[1768859384828,3.00755436,3217.1,3217.0,37.13702182]
[1768859385525,3.00755436,3217.1,3217.0,36.53755182]
[1768859385725,3.00755436,3217.1,3217.0,33.41087121]
[1768859386727,3.00755436,3217.1,3217.0,32.18409121]
[1768859387318,6.11855436,3217.1,3217.0,31.59207121]
[1768859388328,6.1189576,3217.1,3217.0,30.96760121]
[1768859389320,6.1189576,3217.1,3217.0,29.88857121]
[1768859389528,6.1189576,3217.1,3217.0,29.35839121]
[1768859390024,6.1189576,3217.1,3217.0,28.84284121]
[1768859390330,6.1189576,3217.1,3217.0,28.32781121]
[1768859390519,6.1189576,3217.1,3217.0,27.80920121]
[1768859390827,6.1189576,3217.1,3217.0,27.26066121]
[1768859391228,6.1189576,3217.1,3217.0,26.69875121]
[1768859391530,6.1189576,3217.1,3217.0,26.14812121]
[1768859392133,6.1189576,3217.1,3217.0,25.60315121]
[1768859393032,6.1189576,3217.1,3217.0,25.08670121]
[1768859393229,6.1189576,3217.1,3217.0,24.61763121]
[1768859393729,6.1189576,3217.1,3217.0,24.13826121]
[1768859393929,6.1189576,3217.1,3217.0,23.70433121]
[1768859394129,5.25186115,3217.1,3217.0,22.75107121]
[1768859394331,6.0504273,3217.1,3217.0,22.75107121]
[1768859394531,6.0504273,3217.1,3217.0,22.25076121]
[1768859395535,6.0504273,3217.1,3217.0,19.24184137]
[1768859395723,6.0504273,3217.1,3217.0,18.75742137]
[1768859395925,6.0504273,3217.1,3217.0,18.27715137]
[1768859396535,6.0504273,3217.1,3217.0,17.30738137]
[1768859396830,6.0504273,3217.1,3217.0,16.82251137]
[1768859398231,6.0504273,3217.1,3217.0,16.62020975]
[1768859398533,6.0504273,3217.1,3217.0,16.12405975]
[1768859398936,6.0504273,3217.1,3217.0,15.65085975]
[1768859399636,6.03159753,3217.1,3217.0,15.18308975]
[1768859399838,6.03159753,3217.1,3217.0,13.03255993]
[1768859400742,6.03159753,3217.1,3217.0,12.54657993]
[1768859400930,6.03159753,3217.1,3217.0,12.04896993]
[1768859401534,6.03159753,3217.1,3217.0,11.56711993]
[1768859401836,6.03159753,3217.1,3217.0,11.08526993]
[1768859402038,6.03159753,3217.1,3217.0,10.61206993]
[1768859402536,6.03159753,3217.1,3217.0,10.14031993]
[1768859402930,6.03159753,3217.1,3217.0,9.72418993]
[1768859403241,3.25661046,3217.1,3217.0,8.41445993]
[1768859403532,3.29980771,3217.1,3217.0,7.55796993]
[1768859403731,3.29980771,3217.1,3217.0,7.11728993]
[1768859403931,3.29980771,3217.1,3217.0,6.22030993]
[1768859404740,3.29980771,3217.1,3217.0,5.74712993]
[1768859405637,3.29980771,3217.1,3217.0,2.79766234]
[1768859406443,3.29980771,3217.1,3217.0,2.37218234]
[1768859407747,3.29980771,3217.1,3217.0,1.98418234]
[1768859408241,3.29980771,3217.1,3217.0,1.55623234]
[1768859408640,3.29980771,3217.1,3217.0,1.13217234]
[1768859408942,3.29980771,3217.1,3217.0,0.70171234]
[1768859409740,3.29980771,3217.1,3217.0,0.26604234]
[1768859410038,3.29006287,3217.1,3217.0,2.34e-06]
[1768859413346,3.29006287,3217.1,3216.3,1.29031676]
[1768859413544,3.00665347,3217.0,3216.3,1.29031676]
[1768859413845,1.08765347,3216.9,3216.3,1.29031676]
[1768859414045,1.08765347,3216.8,3216.3,32.37511676]
[1768859414347,3.00665347,3216.7,3216.3,32.37511676]
[1768859414646,1.919,3216.6,3216.5,31.0848]
[1768859415049,2.2024094,3217.1,3216.5,31.0848]
[1768859415245,2.22579398,3217.0,3216.3,1.29031676]
[1768859415444,0.30679398,3216.9,3216.3,1.29031676]
[1768859415644,0.30679398,3216.8,3216.3,32.37511676]
[1768859415945,0.30679398,3216.7,3216.3,32.37511676]
[1768859416146,1.919,3216.6,3216.5,31.0848]
[1768859416345,1.64338659,3216.6,3216.5,31.0848]
[1768859416549,1.919,3216.6,3216.5,31.0848]
[1768859416738,2.2024094,3217.1,3216.5,31.0848]
[1768859416939,0.30671329,3217.0,3216.3,1.29031676]
[1768859417246,2.22571329,3216.9,3216.3,32.37511676]
[1768859417446,0.30671329,3216.8,3216.3,32.37511676]
[1768859417740,0.30671329,3216.7,3216.5,31.0848]
[1768859417946,1.919,3216.9,3216.4,31.0848]
[1768859418142,0.30671008,3216.8,3216.4,31.0848]
[1768859418342,0.30671008,3216.7,3216.5,31.0848]
[1768859418651,2.39205541,3217.6,3216.8,31.0848]
[1768859418850,2.22572993,3217.5,3216.6,1.29031676]
[1768859419149,0.14622712,3217.4,3216.7,31.0848]
[1768859419540,0.14622712,3217.4,3216.8,32.37511676]
[1768859419845,2.39203541,3218.1,3217.2,1.29031676]
[1768859420051,1.92,3218.0,3217.0,1.29031676]
[1768859420746,1.92,3218.0,3216.8,1.29031676]
[1768859421153,1.92,3218.0,3216.9,31.0848]
[1768859421543,1.92,3218.0,3216.8,1.29031676]
[1768859421849,1.92,3218.0,3216.9,31.0848]
[1768859422150,1.92,3218.0,3217.0,31.0848]
[1768859422339,1.92,3218.0,3216.9,31.0848]
[1768859422740,1.92,3218.0,3217.0,31.0848]
[1768859422943,1.92,3218.0,3216.9,31.0848]
[1768859423151,3.59327764,3218.0,3216.9,31.0848]
[1768859423346,3.59327764,3218.0,3217.0,31.0848]
[1768859423546,3.59327764,3218.0,3216.9,31.0848]
[1768859423946,3.59327764,3218.0,3217.0,31.0848]
[1768859424147,3.59327764,3218.0,3216.9,31.0848]
[1768859424955,3.59327764,3218.0,3217.0,31.0848]
[1768859425254,1.92,3218.0,3216.9,31.0848]
[1768859425447,1.92,3218.0,3216.8,1.29031676]
[1768859425647,1.92,3218.0,3217.0,31.0848]
[1768859426051,1.92,3218.0,3217.1,31.0848]
[1768859426252,1.92,3218.0,3216.9,31.0848]
[1768859426651,0.77860192,3217.9,3217.0,31.0848]
[1768859426956,0.77860192,3217.8,3217.0,31.0848]
[1768859427163,0.77860192,3217.7,3217.1,31.0848]
[1768859427353,0.77860192,3217.6,3217.0,31.0848]